fUSD/lending_fUSD_20251029
["ID","MTS","AMOUNT","RATE_DAILY","PERIOD"]
[392636284,1761767107743,221.0,0.000175,3]
[392636285,1761767107972,221.0,0.000175,3]
[392636286,1761767156510,492.28,0.00013758,3]
[392636297,1761767413093,187.0,0.000175,3]
[392636298,1761767413432,187.0,0.000175,3]
[392636299,1761767413600,187.0,0.000175,3]
[392636330,1761767431982,-255.51004428,0.00013759,2]
[392636350,1761767432170,-3773.8207,0.00013759,2]
[392636358,1761767432294,-685.94252332,0.00013759,2]
[392636887,1761767438217,-394.14575585,0.00013759,2]
[392636889,1761767438230,-309.60591375,0.00013759,2]
[392636912,1761767438478,-2446.6550628,0.00013759,2]
[392636914,1761767438489,-300.0,0.0001378,2]
[392636916,1761767438501,-1177.57773716,0.00013802,2]
[392636927,1761767438607,-22.42226284,0.00013802,2]
[392636929,1761767438618,-300.0,0.00013803,2]
[392636931,1761767438628,-300.0,0.00013838,2]
[392636933,1761767438640,-213.64,0.00013846,2]
[392636935,1761767438651,-1470.61,0.0001398,2]
[392636937,1761767438663,-300.0,0.00013984,2]
[392636939,1761767438675,-300.0,0.00013984,2]
[392636941,1761767438685,-250.0,0.00013985,2]
[392636943,1761767438695,-2391.27878527,0.00014,2]
[392636945,1761767438706,-200.0,0.00014004,2]
[392636947,1761767438717,-150.0,0.00014021,2]
[392636949,1761767438728,-8904.45,0.00014022,2]
[392636951,1761767438743,-15070.73,0.00014023,2]
[392636954,1761767438754,-250.0,0.00014051,2]
[392636956,1761767438766,-158.81,0.00014071,2]
[392636958,1761767438778,-150.0,0.00014411,2]
[392636960,1761767438789,-221.53471527,0.00014566,2]
[392636962,1761767438800,-12401.4359,0.000146,2]
[392636964,1761767438811,-1000.0,0.000146,2]
[392636966,1761767438822,-1000.0,0.000147,2]
[392636968,1761767438834,-892.67338722,0.00014787,2]
[392636969,1761767438845,-921.59691,0.0001485,2]
[392636972,1761767438857,-151.0,0.00014861,2]
[392636974,1761767438869,-151.0,0.00014861,2]
[392636976,1761767438880,-151.0,0.00014861,2]
[392636978,1761767438891,-151.0,0.00014861,2]
[392636980,1761767438903,-151.0,0.00014861,2]
[392636981,1761767438915,-151.0,0.00014861,2]
[392636984,1761767438927,-151.0,0.00014861,2]
[392636986,1761767438937,-151.0,0.00014861,2]
[392636987,1761767438948,-151.0,0.00014861,2]
[392636989,1761767438959,-151.0,0.00014861,2]
[392636991,1761767438970,-151.0,0.00014861,2]
[392636993,1761767438980,-151.0,0.00014861,2]
[392636995,1761767438992,-151.0,0.00014861,2]
[392636997,1761767439003,-151.0,0.00014861,2]
[392636999,1761767439016,-151.0,0.00014861,2]
[392637001,1761767439027,-151.0,0.00014861,2]
[392637002,1761767439039,-151.0,0.00014861,2]
[392637003,1761767439051,-151.0,0.00014861,2]
[392637004,1761767439062,-151.0,0.00014861,2]
[392637005,1761767439074,-151.0,0.00014861,2]
[392637006,1761767439085,-785.24,0.00014861,2]
[392637007,1761767439097,-820.0,0.0001487,2]
[392637008,1761767439108,-573.0,0.0001487,2]
[392637009,1761767439120,-3418.0,0.0001487,2]
[392637010,1761767439131,-1594.0,0.0001487,2]
[392637011,1761767439142,-904.0,0.0001487,2]
[392637013,1761767439156,-1186.0,0.0001487,2]
[392637015,1761767439167,-3492.0,0.0001487,2]
[392637017,1761767439178,-558.0,0.0001487,2]
[392637019,1761767439188,-150.0,0.0001487,2]
[392637021,1761767439199,-6628.0,0.0001487,2]
[392637023,1761767439212,-150.0,0.0001487,2]
[392637024,1761767439223,-150.0,0.0001487,2]
[392637027,1761767439235,-6581.188,0.0001487,2]
[392637029,1761767439246,-1420.631,0.00014871,2]
[392637031,1761767439256,-200.0,0.0001488,2]
[392637033,1761767439267,-235.01115296,0.00014897,2]
[392637035,1761767439277,-500.0,0.00014897,2]
[392637037,1761767439288,-261.60816401,0.00014897,2]
[392637039,1761767439297,-347.85747351,0.00014897,2]
[392637041,1761767439308,-2500.0,0.00014898,2]
[392637043,1761767439320,-150.0,0.00014899,2]
[392637045,1761767439330,-150.0,0.00014899,2]
[392637046,1761767439341,-150.0,0.00014899,2]
[392637048,1761767439351,-150.0,0.00014899,2]
[392637050,1761767439361,-287.0,0.00014899,2]
[392637052,1761767439371,-500.0,0.00014899,2]
[392637054,1761767439381,-150.0,0.00014899,2]
[392637056,1761767439392,-150.0,0.00014899,2]
[392637059,1761767439406,-500.0,0.00014899,2]
[392637061,1761767439417,-150.0,0.00014899,2]
[392637063,1761767439428,-500.0,0.00014899,2]
[392637077,1761767439438,-500.0,0.00014899,2]
[392637082,1761767439623,-1302.05715948,0.000149,2]
[392637084,1761767439634,-13218.79695195,0.000149,2]
[392637086,1761767439645,-206.06448491,0.000149,2]
[392637088,1761767439658,-157.24,0.00014971,2]
[392637090,1761767439669,-452.43648197,0.00014973,2]
[392637092,1761767439682,-533.15473545,0.00014973,2]
[392637094,1761767439693,-500.0,0.00014973,2]
[392637097,1761767439704,-500.0,0.00014973,2]
[392637099,1761767439715,-508.46172367,0.00014973,2]
[392637101,1761767439725,-500.0,0.00014973,2]
[392637103,1761767439737,-500.0,0.00014973,2]
[392637104,1761767439748,-501.60002589,0.00014973,2]
[392637106,1761767439760,-500.0,0.00014973,2]
[392637108,1761767439772,-234.07088584,0.00014973,2]
[392637119,1761767439877,-500.0,0.0001402,2]
[392637121,1761767439889,-500.0,0.0001402,2]
[392637123,1761767439899,-265.92911416,0.00014973,2]
[392637125,1761767439912,-150.29587258,0.00014973,2]
[392637127,1761767439923,-500.0,0.00014973,2]
[392637129,1761767439935,-433.21534504,0.00014973,2]
[392637131,1761767439944,-414.07331305,0.00014973,2]
[392637133,1761767439959,-85.92668695,0.00014973,2]
[392637135,1761767439969,-473.06516499,0.00014973,2]
[392637137,1761767439980,-500.0,0.00014973,2]
[392637139,1761767439990,-921.59692,0.0001498,2]
[392637141,1761767440000,-11676.76483202,0.0001498,2]
[392637143,1761767440013,-18625.83051456,0.0001498,2]
[392637145,1761767440026,-10995.06567286,0.0001498,2]
[392637147,1761767440036,-506.29907877,0.00014997,2]
[392637149,1761767440047,-8250.59919611,0.00014998,2]
[392637151,1761767440058,-14459.8134806,0.00014998,2]
[392637153,1761767440070,-7631.69372524,0.00014998,2]
[392637156,1761767440082,-377.98388976,0.00014998,2]
[392637158,1761767440095,-2553.78068321,0.00014998,2]
[392637251,1761767441082,-500.0,0.0001402,2]
[392637253,1761767441092,-566.43882265,0.0001402,2]
[392637255,1761767441103,-56.30072042,0.00014977,2]
[392637279,1761767441372,-105.53198571,0.00014977,2]
[392637281,1761767441382,-2477.26819122,0.00014998,2]
[392637309,1761767441688,-1168.77742674,0.00014998,2]
[392637313,1761767441721,-597.945,0.00014998,2]
[392637614,1761767445998,-1000.0,0.00014847,2]
[392637616,1761767446009,-217.08,0.00014998,2]
[392637624,1761767446257,-1456.1920072,0.00014998,2]
[392637627,1761767505879,500.0,0.00013659,2]
[392637628,1761767587551,4470.0,0.000175,3]
[392637629,1761767705794,159.0,0.000175,3]
[392637630,1761767814461,166.66,0.00013699,2]
[392637631,1761767844548,999.0,0.00013873,3]
[392637632,1761768005797,151.0,0.000175,3]
[392637634,1761768195547,979.54,6.891e-05,2]
[392637635,1761768195746,979.54,7.254e-05,2]
[392637636,1761768196057,979.54,7.617e-05,2]
[392637637,1761768196330,979.54,7.979e-05,2]
[392637638,1761768196504,979.54,8.342e-05,2]
[392637639,1761768196950,979.54,8.705e-05,2]
[392637640,1761768197419,891.40935375,9.068e-05,2]
[392637641,1761768197448,88.13064625,9.068e-05,2]
[392637642,1761768197655,979.54,9.43e-05,2]
[392637643,1761768197875,979.54,9.793e-05,2]
[392637644,1761768198108,979.54,0.00010156,2]
[392637645,1761768198523,979.54,0.00010518,2]
[392637646,1761768198662,979.54,0.00010881,2]
[392637647,1761768198893,979.54,0.00011244,2]
[392637648,1761768199130,979.54,0.00011607,2]
[392637649,1761768199315,979.54,0.00011969,2]
[392637650,1761768199546,979.54,0.00012332,2]
[392637651,1761768199767,979.54,0.00012695,2]
[392637652,1761768200023,979.54,0.00013057,2]
[392637653,1761768200467,979.54,0.0001342,2]
[392637654,1761768309471,152.0,0.000175,3]
[392637655,1761768310908,150.0,0.00013488,2]
[392637656,1761768310980,150.0,0.00013488,2]
[392637657,1761768317812,257.58006999,0.00013488,2]
[392637658,1761768318180,150.0,0.00013488,2]
[392637659,1761768318280,150.0,0.00013488,2]
[392637660,1761768325134,150.0,0.00013488,2]
[392637661,1761768330380,150.0,0.00013488,2]
[392637671,1761768587742,-310.99365517,0.00025,120]
[392637672,1761768587770,-150.5,0.0002609,120]
[392637673,1761768587803,-500.0,0.00027868,120]
[392637674,1761768587844,-500.0,0.00029233,120]
[392637675,1761768587880,-500.0,0.00030137,120]
[392637676,1761768587905,-500.0,0.00030137,120]
[392637677,1761768587931,-500.0,0.00030137,120]
[392637678,1761768587956,-500.0,0.00030137,120]
[392637679,1761768587981,-500.0,0.00030137,120]
[392637680,1761768588006,-500.0,0.00030137,120]
[392637681,1761768588031,-500.0,0.00030137,120]
[392637682,1761768588056,-500.0,0.00030137,120]
[392637683,1761768588081,-192.11459569,0.00030137,120]
[392637684,1761768588114,-500.0,0.00030598,120]
[392637685,1761768588140,-305.32,0.000306,120]
[392637686,1761768597976,-4000000.0,0.00037283,60]
[392637687,1761768600528,349.90434703,0.00014999,5]
[392637688,1761768602144,-4000000.0,0.00037283,60]
[392637689,1761768608533,-1829039.5042733,0.00037283,60]
[392637690,1761768608562,-1185.22684807,0.00037283,120]
[392637691,1761768608590,-3272.6595727,0.00037283,120]
[392637692,1761768608618,-1008.0,0.00037283,120]
[392637693,1761768608649,-150.61,0.00037283,120]
[392637694,1761768608675,-228.52869832,0.00037283,90]
[392637695,1761768608704,-1720.27488193,0.00037283,60]
[392637696,1761768608731,-260.53532,0.00037283,60]
[392637697,1761768608760,-559.28630267,0.00037283,120]
[392637698,1761768608785,-500.0,0.00037283,120]
[392637699,1761768608810,-500.0,0.00037283,120]
[392637700,1761768608836,-500.0,0.00037283,120]
[392637701,1761768608862,-500.0,0.00037283,120]
[392637702,1761768608887,-498.34854769,0.00037283,120]
[392637703,1761768608914,-3000.0,0.00037283,120]
[392637704,1761768608946,-377.585406,0.00037283,120]
[392637705,1761768608972,-377.585406,0.00037283,120]
[392637706,1761768608998,-377.585406,0.00037283,120]
[392637707,1761768609026,-386.734106,0.00037283,120]
[392637708,1761768609054,-377.585406,0.00037283,120]
[392637709,1761768609080,-386.734106,0.00037283,120]
[392637710,1761768609108,-377.585406,0.00037283,120]
[392637711,1761768609136,-386.734106,0.00037283,120]
[392637712,1761768609164,-386.734106,0.00037283,120]
[392637713,1761768609192,-386.734106,0.00037283,120]
[392637714,1761768609221,-156.770035,0.00037283,120]
[392637715,1761768609248,-386.734106,0.00037283,120]
[392637716,1761768609276,-386.734106,0.00037283,120]
[392637717,1761768609486,-386.734106,0.00037283,120]
[392637718,1761768609518,-161.822317,0.00037283,120]
[392637719,1761768609546,-377.585406,0.00037283,120]
[392637720,1761768609578,-161.822317,0.00037283,120]
[392637721,1761768609605,-377.585406,0.00037283,120]
[392637722,1761768609634,-226.265536,0.00037283,120]
[392637723,1761768609661,-226.265536,0.00037283,120]
[392637724,1761768609691,-3305.687411,0.00037283,120]
[392637725,1761768609720,-3305.687411,0.00037283,120]
[392637726,1761768609747,-3305.687411,0.00037283,120]
[392637727,1761768609772,-226.265536,0.00037283,120]
[392637728,1761768609802,-3305.687411,0.00037283,120]
[392637729,1761768609829,-4916.019425,0.00037283,120]
[392637730,1761768609855,-226.265536,0.00037283,120]
[392637731,1761768609884,-4916.019425,0.00037283,120]
[392637732,1761768609912,-3305.687411,0.00037283,120]
[392637733,1761768609939,-226.265536,0.00037283,120]
[392637734,1761768609968,-1649.405353,0.00037283,120]
[392637735,1761768609993,-4916.019425,0.00037283,120]
[392637736,1761768610021,-3305.687411,0.00037283,120]
[392637737,1761768610048,-226.265536,0.00037283,120]
[392637738,1761768610074,-1649.405353,0.00037283,120]
[392637739,1761768610100,-4916.019425,0.00037283,120]
[392637740,1761768610126,-226.265536,0.00037283,120]
[392637741,1761768610155,-3305.687411,0.00037283,120]
[392637742,1761768610183,-1649.405353,0.00037283,120]
[392637743,1761768610208,-4916.019425,0.00037283,120]
[392637744,1761768610233,-226.265536,0.00037283,120]
[392637745,1761768610259,-3305.687411,0.00037283,120]
[392637746,1761768610286,-1649.405353,0.00037283,120]
[392637747,1761768610324,-4916.019425,0.00037283,120]
[392637748,1761768610352,-1649.405353,0.00037283,120]
[392637749,1761768610381,-4916.019425,0.00037283,120]
[392637750,1761768610409,-1649.405353,0.00037283,120]
[392637751,1761768610436,-4916.019425,0.00037283,120]
[392637752,1761768610465,-1649.405353,0.00037283,120]
[392637753,1761768610492,-1649.405353,0.00037283,120]
[392637754,1761768610519,-2949.611654,0.00037283,120]
[392637755,1761768610545,-2949.611654,0.00037283,120]
[392637756,1761768610575,-2949.611654,0.00037283,120]
[392637757,1761768610603,-2949.611654,0.00037283,120]
[392637758,1761768610630,-2949.611654,0.00037283,120]
[392637759,1761768610656,-2949.611654,0.00037283,120]
[392637760,1761768610683,-2949.611654,0.00037283,120]
[392637761,1761768610710,-2949.611654,0.00037283,120]
[392637762,1761768610735,-507.90220173,0.00037283,120]
[392637763,1761768610765,-500.0,0.00037283,120]
[392637764,1761768610792,-500.0,0.00037283,120]
[392637765,1761768610819,-500.0,0.00037283,120]
[392637766,1761768610845,-505.84202904,0.00037283,120]
[392637767,1761768610872,-508.44562832,0.00037283,120]
[392637768,1761768610900,-500.0,0.00037283,120]
[392637769,1761768611105,-268.52539408,0.00037283,120]
[392637770,1761768611140,-515.80639759,0.00037283,120]
[392637771,1761768611166,-645.82908222,0.00037283,120]
[392637772,1761768611192,-508.50956892,0.00037283,120]
[392637773,1761768611218,-474.54384517,0.00037283,120]
[392637774,1761768611244,-500.0,0.00037283,120]
[392637775,1761768611270,-506.41738809,0.00037283,120]
[392637776,1761768611297,-507.98793959,0.00037283,120]
[392637777,1761768611322,-500.0,0.00037283,120]
[392637778,1761768611347,-500.0,0.00037283,120]
[392637779,1761768611373,-500.0,0.00037283,120]
[392637780,1761768611409,-500.0,0.00037283,120]
[392637781,1761768611443,-500.0,0.00037283,120]
[392637782,1761768611471,-500.0,0.00037283,120]
[392637783,1761768611498,-500.0,0.00037283,120]
[392637784,1761768611525,-169.03044507,0.00037283,120]
[392637785,1761768611554,-500.0,0.00037283,120]
[392637786,1761768611580,-500.0,0.00037283,120]
[392637787,1761768611606,-500.0,0.00037283,120]
[392637788,1761768611634,-500.0,0.00037283,120]
[392637789,1761768611664,-227.34234283,0.00037283,120]
[392637790,1761768611690,-500.0,0.00037283,120]
[392637791,1761768611716,-500.0,0.00037283,120]
[392637792,1761768611742,-500.0,0.00037283,120]
[392637793,1761768611768,-500.0,0.00037283,120]
[392637794,1761768611797,-500.0,0.00037283,120]
[392637795,1761768611823,-500.0,0.00037283,120]
[392637796,1761768611853,-500.0,0.00037283,120]
[392637797,1761768611880,-500.0,0.00037283,120]
[392637798,1761768611908,-500.0,0.00037283,120]
[392637799,1761768611935,-500.0,0.00037283,120]
[392637800,1761768611960,-500.0,0.00037283,120]
[392637801,1761768612005,-500.0,0.00037283,120]
[392637802,1761768612056,-500.0,0.00037283,120]
[392637803,1761768612105,-500.0,0.00037283,120]
[392637804,1761768612155,-500.0,0.00037283,120]
[392637805,1761768612205,-500.0,0.00037283,120]
[392637806,1761768612251,-500.0,0.00037283,120]
[392637807,1761768612307,-500.0,0.00037283,120]
[392637808,1761768612372,-549.2642455,0.00037283,120]
[392637809,1761768612423,-500.0,0.00037283,120]
[392637810,1761768612469,-500.0,0.00037283,120]
[392637811,1761768612515,-500.0,0.00037283,120]
[392637812,1761768612562,-500.0,0.00037283,120]
[392637813,1761768612604,-500.0,0.00037283,120]
[392637814,1761768612646,-500.0,0.00037283,120]
[392637815,1761768612703,-500.0,0.00037283,120]
[392637816,1761768612758,-500.0,0.00037283,120]
[392637817,1761768612818,-500.0,0.00037283,120]
[392637818,1761768612876,-500.0,0.00037283,120]
[392637819,1761768612944,-500.0,0.00037283,120]
[392637820,1761768612995,-182.50067778,0.00037283,120]
[392637821,1761768613041,-500.0,0.00037283,120]
[392637822,1761768613086,-500.0,0.00037283,120]
[392637823,1761768613129,-500.0,0.00037283,120]
[392637824,1761768613173,-500.0,0.00037283,120]
[392637825,1761768613217,-222.05580454,0.00037283,120]
[392637826,1761768613266,-500.0,0.00037283,120]
[392637827,1761768613328,-500.0,0.00037283,120]
[392637828,1761768613411,-500.0,0.00037283,120]
[392637829,1761768613463,-500.0,0.00037283,120]
[392637830,1761768613504,-500.0,0.00037283,120]
[392637831,1761768613548,-500.0,0.00037283,120]
[392637832,1761768613596,-500.0,0.00037283,120]
[392637833,1761768613867,-500.0,0.00037283,120]
[392637834,1761768613914,-451.75298966,0.00037283,120]
[392637835,1761768613957,-500.0,0.00037283,120]
[392637836,1761768613983,-507.7543051,0.00037283,120]
[392637837,1761768614023,-509.84145156,0.00037283,120]
[392637838,1761768614051,-500.0,0.00037283,120]
[392637839,1761768614079,-500.0,0.00037283,120]
[392637840,1761768614106,-513.18888527,0.00037283,120]
[392637841,1761768614136,-500.0,0.00037283,120]
[392637842,1761768614163,-500.0,0.00037283,120]
[392637843,1761768614189,-500.0,0.00037283,120]
[392637844,1761768614215,-500.0,0.00037283,120]
[392637845,1761768614240,-500.0,0.00037283,120]
[392637846,1761768614266,-500.0,0.00037283,120]
[392637847,1761768614292,-500.0,0.00037283,120]
[392637848,1761768614317,-519.2287556,0.00037283,120]
[392637849,1761768614341,-500.0,0.00037283,120]
[392637850,1761768614367,-500.0,0.00037283,120]
[392637851,1761768614394,-695.79,0.00037283,120]
[392637852,1761768614419,-695.79,0.00037283,120]
[392637853,1761768614444,-500.0,0.00037283,120]
[392637854,1761768614468,-695.79,0.00037283,120]
[392637855,1761768614493,-695.79,0.00037283,120]
[392637856,1761768614519,-500.0,0.00037283,120]
[392637857,1761768614545,-500.0,0.00037283,120]
[392637858,1761768614573,-695.79,0.00037283,120]
[392637859,1761768614600,-500.0,0.00037283,120]
[392637860,1761768614637,-695.79,0.00037283,120]
[392637861,1761768614666,-498.33706646,0.00037283,120]
[392637862,1761768614694,-695.79,0.00037283,120]
[392637863,1761768614722,-695.79,0.00037283,120]
[392637864,1761768614750,-695.79,0.00037283,120]
[392637865,1761768614777,-695.79,0.00037283,120]
[392637866,1761768614804,-695.79,0.00037283,120]
[392637867,1761768614831,-695.79,0.00037283,120]
[392637868,1761768614859,-695.79,0.00037283,120]
[392637869,1761768614887,-695.79,0.00037283,120]
[392637870,1761768614914,-695.79,0.00037283,120]
[392637871,1761768614941,-695.79,0.00037283,120]
[392637872,1761768614968,-500.0,0.00037283,120]
[392637873,1761768614995,-695.79,0.00037283,120]
[392637874,1761768615022,-500.0,0.00037283,120]
[392637875,1761768615049,-695.79,0.00037283,120]
[392637876,1761768615085,-500.0,0.00037283,120]
[392637877,1761768615113,-500.0,0.00037283,120]
[392637878,1761768615141,-695.79,0.00037283,120]
[392637879,1761768615169,-500.0,0.00037283,120]
[392637880,1761768615198,-500.0,0.00037283,120]
[392637881,1761768615226,-695.79,0.00037283,120]
[392637882,1761768615253,-298.140085,0.00037283,120]
[392637883,1761768615279,-695.79,0.00037283,120]
[392637884,1761768615305,-695.79,0.00037283,120]
[392637885,1761768615331,-500.0,0.00037283,120]
[392637886,1761768615357,-695.79,0.00037283,120]
[392637887,1761768615386,-500.0,0.00037283,120]
[392637888,1761768615414,-500.0,0.00037283,120]
[392637889,1761768615442,-696.00189341,0.00037283,120]
[392637890,1761768615469,-511.15815593,0.00037283,120]
[392637891,1761768615496,-500.0,0.00037283,120]
[392637892,1761768615524,-244.08629834,0.00037283,120]
[392637893,1761768615553,-500.0,0.00037283,120]
[392637894,1761768615581,-500.0,0.00037283,120]
[392637895,1761768615610,-500.0,0.00037283,120]
[392637896,1761768615640,-500.0,0.00037283,120]
[392637897,1761768615669,-609.29383525,0.00037283,120]
[392637898,1761768615696,-675.4,0.00037283,120]
[392637899,1761768615724,-500.0,0.00037283,120]
[392637900,1761768615757,-675.4,0.00037283,120]
[392637901,1761768615788,-500.0,0.00037283,120]
[392637902,1761768615815,-675.4,0.00037283,120]
[392637903,1761768615843,-675.4,0.00037283,120]
[392637904,1761768616053,-500.0,0.00037283,120]
[392637905,1761768616082,-675.4,0.00037283,120]
[392637906,1761768616114,-500.0,0.00037283,120]
[392637907,1761768616142,-675.4,0.00037283,120]
[392637908,1761768616169,-500.0,0.00037283,120]
[392637909,1761768616197,-675.4,0.00037283,120]
[392637910,1761768616224,-500.0,0.00037283,120]
[392637911,1761768616251,-597.0,0.00037283,120]
[392637912,1761768616278,-675.4,0.00037283,120]
[392637913,1761768616305,-500.0,0.00037283,120]
[392637914,1761768616331,-675.4,0.00037283,120]
[392637915,1761768616361,-500.0,0.00037283,120]
[392637916,1761768616389,-675.4,0.00037283,120]
[392637917,1761768616416,-235.87827805,0.00037283,120]
[392637918,1761768616442,-675.4,0.00037283,120]
[392637919,1761768616468,-675.4,0.00037283,120]
[392637920,1761768616495,-675.4,0.00037283,120]
[392637921,1761768616521,-675.4,0.00037283,120]
[392637922,1761768616548,-675.4,0.00037283,120]
[392637923,1761768616578,-675.4,0.00037283,120]
[392637924,1761768616608,-675.4,0.00037283,120]
[392637925,1761768616638,-675.4,0.00037283,120]
[392637926,1761768616665,-675.4,0.00037283,120]
[392637927,1761768616692,-675.4,0.00037283,120]
[392637928,1761768616719,-675.4,0.00037283,120]
[392637929,1761768616744,-675.4,0.00037283,120]
[392637930,1761768616770,-675.4,0.00037283,120]
[392637931,1761768616797,-675.46210988,0.00037283,120]
[392637932,1761768616824,-500.0,0.00037283,120]
[392637933,1761768616853,-500.0,0.00037283,120]
[392637934,1761768616882,-1076.63,0.00037283,120]
[392637935,1761768616909,-1076.63,0.00037283,120]
[392637936,1761768616937,-1076.63,0.00037283,120]
[392637937,1761768616964,-1076.63,0.00037283,120]
[392637938,1761768616992,-1076.63,0.00037283,120]
[392637939,1761768617021,-1076.63,0.00037283,120]
[392637940,1761768617047,-1076.63,0.00037283,120]
[392637941,1761768617074,-1076.63,0.00037283,120]
[392637942,1761768617100,-500.0,0.00037283,120]
[392637943,1761768617126,-1076.63,0.00037283,120]
[392637944,1761768617155,-500.0,0.00037283,120]
[392637945,1761768617181,-1076.63,0.00037283,120]
[392637946,1761768617207,-500.0,0.00037283,120]
[392637947,1761768617232,-1076.63,0.00037283,120]
[392637948,1761768617257,-500.0,0.00037283,120]
[392637949,1761768617282,-1076.63,0.00037283,120]
[392637950,1761768617307,-500.0,0.00037283,120]
[392637951,1761768617332,-1076.63,0.00037283,120]
[392637952,1761768617358,-500.0,0.00037283,120]
[392637953,1761768617386,-1076.63,0.00037283,120]
[392637954,1761768617412,-500.0,0.00037283,120]
[392637955,1761768617437,-1076.63,0.00037283,120]
[392637956,1761768617462,-500.0,0.00037283,120]
[392637957,1761768617488,-500.0,0.00037283,120]
[392637958,1761768617513,-500.0,0.00037283,120]
[392637959,1761768617540,-1076.63,0.00037283,120]
[392637960,1761768617565,-500.0,0.00037283,120]
[392637961,1761768617608,-500.0,0.00037283,120]
[392637962,1761768617642,-1076.63,0.00037283,120]
[392637963,1761768617673,-500.0,0.00037283,120]
[392637964,1761768617701,-500.0,0.00037283,120]
[392637965,1761768617728,-1076.63,0.00037283,120]
[392637966,1761768617755,-500.0,0.00037283,120]
[392637967,1761768617782,-1076.63,0.00037283,120]
[392637968,1761768617810,-500.0,0.00037283,120]
[392637969,1761768617837,-1076.63,0.00037283,120]
[392637970,1761768617865,-1076.63,0.00037283,120]
[392637971,1761768617892,-1076.63,0.00037283,120]
[392637972,1761768617920,-1076.63,0.00037283,120]
[392637973,1761768617949,-1076.65871074,0.00037283,120]
[392637974,1761768617977,-500.0,0.00037283,120]
[392637975,1761768618007,-500.0,0.00037283,120]
[392637976,1761768618038,-485.66475146,0.00037283,120]
[392637977,1761768618066,-500.0,0.00037283,120]
[392637978,1761768618093,-500.0,0.00037283,120]
[392637979,1761768618121,-500.0,0.00037283,120]
[392637980,1761768618148,-500.0,0.00037283,120]
[392637981,1761768618176,-500.0,0.00037283,120]
[392637982,1761768618203,-500.0,0.00037283,120]
[392637983,1761768618230,-500.0,0.00037283,120]
[392637984,1761768618258,-500.0,0.00037283,120]
[392637985,1761768618285,-500.0,0.00037283,120]
[392637986,1761768618311,-170.95490799,0.00037283,120]
[392637987,1761768618337,-500.0,0.00037283,120]
[392637988,1761768618364,-500.0,0.00037283,120]
[392637989,1761768618391,-500.0,0.00037283,120]
[392637990,1761768618417,-1208.59,0.00037283,120]
[392637991,1761768618445,-500.0,0.00037283,120]
[392637992,1761768618472,-500.0,0.00037283,120]
[392637993,1761768618499,-1208.59,0.00037283,120]
[392637994,1761768618527,-500.0,0.00037283,120]
[392637995,1761768618556,-1208.59,0.00037283,120]
[392637996,1761768618587,-500.0,0.00037283,120]
[392637997,1761768618618,-1208.59,0.00037283,120]
[392637998,1761768618822,-500.0,0.00037283,120]
[392637999,1761768618851,-500.0,0.00037283,120]
[392638000,1761768618879,-1208.59,0.00037283,120]
[392638001,1761768618913,-500.0,0.00037283,120]
[392638002,1761768618943,-304.14352406,0.00037283,120]
[392638003,1761768618973,-1208.59,0.00037283,120]